[Event "ROU-chT Women Superliga 2018"]
[Site "Sovata"]
[Date "2018.11.28"]
[Round "4"]
[White "Coman, Emilia-Florentina"]
[Black "Popa, Andrada"]
[Result "1-0"]
[ECO "D35"]
[WhiteElo "1802"]
[BlackElo "1598"]
[Annotator "NA"]
[PlyCount "45"]
[EventDate "2018.11.24"]
[EventType "team-tourn"]
[EventCountry "ROU"]
[SourceTitle "playchess.com"]
[Source "ChessBase"]
[SourceQuality "1"]
[TimeControl "40/5400+30:1800+30"]

1. d4 {[%emt 0:00:00]} d5 {[%emt 0:01:46]} 2. c4 {[%emt 0:00:00]} e6 {[%emt 0:00:06]} 3. Nc3 {[%emt 0:00:00]} Nf6 {[%emt 0:00:05]} 4. cxd5 {[%emt 0:00:00]} exd5 {[%emt 0:00:06]} 5. Bg5 {[%emt 0:00:00]} c6 {[%emt 0:00:08]} 6. e3 {[%emt 0:00:08]} Be7 {[%emt 0:00:29]} 7. Bd3 {[%emt 0:00:05]} Nbd7 {[%emt 0:01:54]} 8. Qc2 {[%emt 0:01:17]} h6 {[%emt 0:03:55]} 9. Bh4 {[%emt 0:00:08]} O-O {[%emt 0:04:14]} 10. Nf3 {[%emt 0:00:26]} Re8 {[%emt 0:01:10]} 11. O-O {[%emt 0:01:43]} Ne4 {[%emt 0:13:33]} 12. Bxe7 {[%emt 0:05:31]} Qxe7 {[%emt 0:01:04] LiveBook: 115 Games} 13. Rab1 {[%emt 0:01:26]} a5 {[%emt 0:06:00]} 14. Na4 {[%emt 0:06:21]} f5 {[%emt 0:16:21]} 15. Rbc1 {[%emt 0:13:32]} Qd6 {[%emt 0:05:30]} 16. Rfe1 {[%emt 0:16:38]} Ndf6 {[%emt 0:12:01]} (16... b5 $11 {keeps the balance.}) 17. Ne5 {[%emt 0:04:35]} c5 $18 {[%emt 0:11:47]} (17... Qd8 $16) 18. Nxc5 {[%emt 0:01:55]} b6 {[%emt 0:07:24]} 19. Na4 {[%emt 0:06:37]} Bb7 {[%emt 0:06:04]} 20. Qc7 {[%emt 0:01:50]} Rab8 {[%emt 0:02:39]} 21. Qf7+ {[%emt 0:07:48]} Kh7 {[%emt 0:00:30]} 22. Rc7 {[%emt 0:00:58]} Rg8 {[%emt 0:01:13]} 23. Qg6+ {[%emt 0:00:08]} 1-0

[Event "ROU-chT Women Superliga 2018"]
[Site "Sovata"]
[Date "2018.11.28"]
[Round "4"]
[White "Rata, Anamaria"]
[Black "Cosman, Andreea-Marioara"]
[Result "1/2-1/2"]
[ECO "B90"]
[WhiteElo "1780"]
[BlackElo "2176"]
[Annotator "NA RC"]
[PlyCount "107"]
[EventDate "2018.11.24"]
[EventType "team-tourn"]
[EventCountry "ROU"]
[SourceTitle "playchess.com"]
[Source "ChessBase"]
[SourceQuality "1"]
[TimeControl "40/5400+30:1800+30"]

1. e4 {[%emt 0:00:00]} c5 {[%emt 0:00:00]} 2. Nf3 {[%emt 0:00:07]} d6 {[%emt 0:00:00]} 3. d4 {[%emt 0:00:06]} cxd4 {[%emt 0:00:00]} 4. Nxd4 {[%emt 0:00:07]} Nf6 {[%emt 0:00:00]} 5. Nc3 {[%emt 0:00:06]} a6 {[%emt 0:00:00]} 6. Be3 {[%emt 0:00:08]} e5 {[%emt 0:00:00]} 7. Nb3 {[%emt 0:00:07]} Be6 {[%emt 0:00:00]} 8. Qd2 {[%emt 0:00:11]} Be7 {[%emt 0:00:26]} 9. f4 {[%emt 0:00:57] B90: Sicilian Najdorf: Unusual White 6th moves, 6 Be3 Ng4 and 6 Be3 e5} Ng4 {[%emt 0:04:19]} 10. f5 {[%emt 0:23:19]} Bxb3 {[%emt 0:01:36]} 11. axb3 {[%emt 0:07:53]} Nxe3 {[%emt 0:00:24]} 12. Qxe3 {[%emt 0:00:06] LiveBook: 3 Games} Nc6 {[%emt 0:00:03]} ({Black should try} 12... Nd7 $14) 13. Bd3 $146 {[%emt 0:04:30]} ({Predecessor:} 13. Nd5 h5 14. c3 Kf8 15. Qb6 Qb8 16. Be2 Bh4+ {1-0 (29) Kobalia,M (2623)-Fedoseev,V (2674) Kaliningrad 2015}) 13... Bg5 {[%emt 0:06:11]} 14. Qf2 {[%emt 0:00:52]} Nb4 {[%emt 0:01:00]} 15. Rd1 {[%emt 0:09:40]} O-O {[%emt 0:03:42]} 16. Bc4 {[%emt 0:10:34]} Be3 {[%emt 0:03:06]} 17. Qe2 {[%emt 0:00:26]} Rc8 {[%emt 0:05:49]} (17... b5 $11 18. Nd5 Qh4+ 19. Kf1 bxc4 20. Nxe3 cxb3) 18. Rf1 {[%emt 0:11:42]} b5 {[%emt 0:09:14]} 19. Bd5 $2 {[%emt 0:04:05]} (19. Nd5 $11 {and White has nothing to worry.} Nxd5 20. Bxd5 Qa5+ 21. c3 Rxc3 22. bxc3 Qxc3+ 23. Rd2 Qc1+ 24. Rd1 Qc3+ 25. Rd2 Qc1+ 26. Rd1 Qc3+) 19... Qa5 {[%emt 0:08:03]} 20. Rf3 {[%emt 0:10:03]} Bd4 {[%emt 0:12:10]} 21. Kf1 {[%emt 0:06:59]} Bxc3 {[%emt 0:16:18]} 22. bxc3 {[%emt 0:05:26]} Nxd5 {[%emt 0:00:15]} 23. Rxd5 {[%emt 0:00:38]} Rxc3 {[%emt 0:01:19]} 24. Rxc3 {[%emt 0:01:58]} Qxc3 {[%emt 0:00:04]} 25. Rxd6 {[%emt 0:00:34]} h6 {[%emt 0:01:27]} 26. Qd2 {[%emt 0:01:45]} Qa1+ {[%emt 0:05:23]} 27. Qd1 {[%emt 0:00:36]} Qxd1+ {[%emt 0:11:30]} 28. Rxd1 {[%emt 0:00:05]} Rc8 {[%emt 0:00:10]} 29. Rd2 {[%emt 0:00:49]} Kf8 {[%emt 0:02:17]} 30. Ke1 {[%emt 0:00:27]} Ke7 {[%emt 0:05:29]} 31. Kd1 {[%emt 0:00:30]} Rc3 {[%emt 0:00:42]} 32. Rd5 {[%emt 0:00:38]} f6 {[%emt 0:01:18]} 33. Kd2 {[%emt 0:00:13]} Rc6 {[%emt 0:00:24]} 34. Kd3 {[%emt 0:00:35]} b4 {[%emt 0:01:02]} 35. Kd2 {[%emt 0:00:44]} Rd6 {[%emt 0:01:36]} 36. Rxd6 {[%emt 0:00:30]} Kxd6 {[%emt 0:00:07]} 37. Kd3 {[%emt 0:00:19]} Kc5 {[%emt 0:00:23]} 38. g4 {[%emt 0:00:39]} Kb5 {[%emt 0:01:05]} 39. h3 {[%emt 0:00:30]} Kc5 {[%emt 0:00:28]} 40. Ke3 {[%emt 0:00:00]} a5 {[%emt 0:00:00]} 41. h4 {[%emt 0:06:43]} Kb5 {[%emt 0:01:03]} 42. Kd3 {[%emt 0:00:10]} a4 {[%emt 0:04:51]} 43. c4+ $1 {[%emt 0:11:18]} Ka5 {[%emt 0:03:42]} 44. bxa4 {[%emt 0:01:32]} Kxa4 {[%emt 0:00:14]} 45. c5 $1 {[%emt 0:00:22]} Kb5 {[%emt 0:00:12] [#]} 46. c6 $1 {[%emt 0:00:18]} Kxc6 {[%emt 0:00:02]} 47. Kc4 {[%emt 0:00:11]} b3 {[%emt 0:00:02]} 48. Kxb3 {[%emt 0:00:09]} h5 {[%emt 0:10:20]} 49. gxh5 {[%emt 0:02:33]} Kb5 {[%emt 0:00:24]} (49... Kc5 $5 50. Kc3 $8 Kb5 $11) 50. Kc3 $11 {[%emt 0:00:44]} Kc5 {[%emt 0:00:07]} 51. h6 {[%emt 0:00:20]} gxh6 {[%emt 0:00:06]} 52. h5 {[%emt 0:00:06]} Kb5 {[%emt 0:00:07]} 53. Kb3 $11 {[%emt 0:00:12]} Kc5 {[%emt 0:00:05]} 54. Kc3 {[%emt 0:00:06]} 1/2-1/2

[Event "ROU-chT Women Superliga 2018"]
[Site "Sovata"]
[Date "2018.11.29"]
[Round "5"]
[White "L'Ami, Alina"]
[Black "Cristocea, Gabriela"]
[Result "1-0"]
[ECO "D15"]
[WhiteElo "2285"]
[BlackElo "1843"]
[Annotator "NA RC"]
[PlyCount "69"]
[EventDate "2018.11.24"]
[EventType "team-tourn"]
[EventCountry "ROU"]
[SourceTitle "playchess.com"]
[Source "ChessBase"]
[SourceQuality "1"]
[TimeControl "40/5400+30:1800+30"]

1. d4 {[%emt 0:00:00]} d5 {[%emt 0:00:00]} 2. c4 {[%emt 0:00:00]} c6 {[%emt 0:00:00]} 3. Nf3 {[%emt 0:00:00]} Nf6 {[%emt 0:00:00]} 4. Nc3 {[%emt 0:00:00]} a6 {[%emt 0:00:00] LiveBook: 8539 Games} 5. Qc2 {[%emt 0:00:28]} g6 {[%emt 0:04:01] D15: Slav Defence: 4 Nc3 a6 and gambit lines after 4 Nc3 dxc4} 6. Bg5 {[%emt 0:00:15]} Bg7 {[%emt 0:00:06]} (6... Be6 7. e4 dxe4 8. Nxe4 Nbd7 9. Nxf6+ exf6 10. Bd2 Bg7 11. Be2 O-O 12. O-O Bf5 13. Qb3 {1-0 (40) Gelfand,B (2695)-Artemiev,V (2704) Poikovsky 2018}) 7. Bxf6 {[%emt 0:00:30]} Bxf6 {[%emt 0:00:36]} 8. cxd5 {[%emt 0:00:06]} cxd5 {[%emt 0:01:28]} 9. Nxd5 {[%emt 0:00:13]} Nc6 {[%emt 0:03:26]} 10. Nxf6+ {[%emt 0:00:47]} exf6 {[%emt 0:00:05]} 11. e3 {[%emt 0:04:01]} Bf5 {[%emt 0:03:49]} 12. Qd2 {[%emt 0:03:31]} O-O {[%emt 0:01:15]} 13. Be2 {[%emt 0:01:47]} Qe7 $146 {[%emt 0:11:57]} 14. O-O {[%emt 0:02:52]} Rfd8 {[%emt 0:01:45]} 15. Rfc1 {[%emt 0:03:59]} Rd7 {[%emt 0:03:48]} 16. a3 {[%emt 0:04:44]} Rad8 {[%emt 0:02:36]} 17. Qe1 {[%emt 0:05:25]} Be4 {[%emt 0:01:24]} 18. Nd2 {[%emt 0:02:14]} f5 {[%emt 0:05:12]} (18... Bd5 $16 {was necessary.} 19. Nc4 Be4) 19. Nxe4 {[%emt 0:07:28]} fxe4 {[%emt 0:00:30]} 20. b4 {[%emt 0:02:05]} Rc7 {[%emt 0:05:46]} 21. Rc5 {[%emt 0:02:51]} Rdc8 {[%emt 0:04:13]} 22. Rac1 {[%emt 0:02:31]} b6 {[%emt 0:01:05]} 23. R5c3 {[%emt 0:01:16]} Nb8 {[%emt 0:04:31]} 24. Bc4 {[%emt 0:03:55]} Qd6 {[%emt 0:02:42]} 25. h3 {[%emt 0:05:31]} Kg7 {[%emt 0:01:27]} 26. Bb3 {[%emt 0:03:38]} Nd7 {[%emt 0:03:22]} 27. Rxc7 {[%emt 0:04:15]} Rxc7 {[%emt 0:00:06]} 28. Rc3 $18 {[%emt 0:00:19]} Nf6 {[%emt 0:12:21]} 29. Qc1 {[%emt 0:00:31]} Nd5 {[%emt 0:03:36]} 30. Rxc7 {[%emt 0:01:02]} Nxc7 {[%emt 0:00:36]} 31. Qc4 {[%emt 0:00:49]} Qd7 {[%emt 0:01:41]} 32. d5 {[%emt 0:00:58]} Qe7 {[%emt 0:04:38]} 33. Qd4+ {[%emt 0:04:23]} Qf6 {[%emt 0:01:15]} 34. Qxe4 {[%emt 0:01:34]} Nb5 {[%emt 0:01:43]} 35. a4 {[%emt 0:00:53]} 1-0

[Event "ROU-chT Women Superliga 2018"]
[Site "Sovata"]
[Date "2018.11.29"]
[Round "5"]
[White "Dragomirescu, Angela"]
[Black "Anton, Ana-Roxana"]
[Result "1/2-1/2"]
[ECO "A05"]
[WhiteElo "2275"]
[BlackElo "1860"]
[Annotator "NA RC"]
[PlyCount "40"]
[EventDate "2018.11.24"]
[EventType "team-tourn"]
[EventCountry "ROU"]
[SourceTitle "playchess.com"]
[Source "ChessBase"]
[SourceQuality "1"]
[TimeControl "40/5400+30:1800+30"]

{[%evp 12,34,22,6,24,32767,27,32767,28,18,13,19,32767,27,32767,-8,36,-29,32767,32767,32767,-41,32767,32767,10]} 1. Nf3 {[%emt 0:00:00]} Nf6 {[%emt 0:00:00]} 2. d4 {[%emt 0:00:00]} e6 {[%emt 0:00:00]} 3. g3 {[%emt 0:00:00]} b5 {[%emt 0:00:42]} 4. Bg2 {[%emt 0:00:21]} Bb7 {[%emt 0:00:06]} 5. O-O {[%emt 0:01:15]} c5 {[%emt 0:01:54]} 6. Be3 {[%emt 0:10:01]} c4 {[%emt 0:12:44]} 7. c3 {[%emt 0:04:48]} a5 {[%emt 0:15:03]} 8. a4 {[%emt 0:05:06]} b4 {[%emt 0:02:36]} 9. b3 {[%emt 0:01:22]} d5 {[%emt 0:14:29]} 10. Ne5 {[%emt 0:01:40]} cxb3 {[%emt 0:00:12]} 11. Qxb3 {[%emt 0:01:30]} Be7 {[%emt 0:07:15]} 12. cxb4 {[%emt 0:04:18]} axb4 {[%emt 0:00:31]} 13. Rc1 {[%emt 0:06:46]} Ba6 {[%emt 0:03:38]} 14. Bf1 {[%emt 0:01:40]} O-O {[%emt 0:00:30]} 15. Nd2 {[%emt 0:00:52]} Nfd7 {[%emt 0:03:18]} 16. Nd3 {[%emt 0:02:53]} Qb6 {[%emt 0:08:26]} 17. Ne5 {[%emt 0:16:04]} f6 $11 {[%emt 0:04:34]} (17... Re8 $15) 18. Nxd7 {[%emt 0:09:20]} Nxd7 {[%emt 0:00:06]} 19. a5 {[%emt 0:09:46]} Qb7 {[%emt 0:01:52]} 20. h4 {[%emt 0:03:30]} Rac8 {[%emt 0:00:25]} 1/2-1/2

[Event "ROU-chT Women Superliga 2018"]
[Site "Sovata"]
[Date "2018.11.29"]
[Round "5"]
[White "Cosman, Andreea-Marioara"]
[Black "Ciolacu, Alessia-Mihaela"]
[Result "1-0"]
[ECO "D08"]
[WhiteElo "2176"]
[BlackElo "1972"]
[Annotator "NA RC"]
[PlyCount "55"]
[EventDate "2018.11.24"]
[EventType "team-tourn"]
[EventCountry "ROU"]
[SourceTitle "playchess.com"]
[Source "ChessBase"]
[SourceQuality "1"]
[TimeControl "40/5400+30:1800+30"]

1. d4 {[%emt 0:00:00]} d5 {[%emt 0:00:00]} 2. c4 {[%emt 0:00:00]} e5 {[%emt 0:00:00]} 3. dxe5 {[%emt 0:00:55]} d4 {[%emt 0:00:00]} 4. e4 {[%emt 0:00:03]} Nc6 {[%emt 0:05:01]} 5. f4 {[%emt 0:00:12]} f5 {[%emt 0:46:51]} 6. Bd3 {[%emt 0:06:59]} fxe4 {[%emt 0:02:54]} 7. Bxe4 {[%emt 0:00:23]} Nxe5 {[%emt 0:01:07]} 8. Nf3 {[%emt 0:07:46]} ({But not} 8. Qh5+ Nf7 $15) 8... Bb4+ {[%emt 0:15:51]} 9. Bd2 {[%emt 0:08:30]} Bxd2+ {[%emt 0:00:12]} 10. Nbxd2 {[%emt 0:01:02]} Nxf3+ {[%emt 0:00:08]} 11. Qxf3 {[%emt 0:00:22]} Ne7 {[%emt 0:00:53]} 12. Nb3 {[%emt 0:03:05]} O-O {[%emt 0:00:36]} 13. O-O-O {[%emt 0:03:24]} Qd6 {[%emt 0:02:41]} 14. Rxd4 {[%emt 0:02:17]} Qh6 {[%emt 0:03:56]} 15. g3 {[%emt 0:12:17]} c6 {[%emt 0:00:29]} 16. Nc5 $18 {[%emt 0:04:50]} Qh3 {[%emt 0:06:39]} 17. Re1 {[%emt 0:03:01]} Bg4 {[%emt 0:01:24]} 18. Qf2 {[%emt 0:06:37]} b6 {[%emt 0:02:13]} 19. Bg2 {[%emt 0:02:57]} Qh5 {[%emt 0:00:07]} 20. Nd7 {[%emt 0:01:44]} Rfe8 {[%emt 0:00:50]} 21. Ne5 {[%emt 0:01:09]} Rac8 {[%emt 0:04:31]} 22. h3 {[%emt 0:00:54]} Be6 {[%emt 0:00:11]} 23. g4 {[%emt 0:00:04]} Qh6 {[%emt 0:00:10]} 24. g5 {[%emt 0:01:43]} Qh5 {[%emt 0:00:05]} 25. Bf3 {[%emt 0:00:03]} Qxh3 {[%emt 0:00:34]} 26. Rh1 {[%emt 0:00:05]} Qxh1+ {[%emt 0:03:37]} 27. Bxh1 {[%emt 0:00:10]} c5 {[%emt 0:00:03]} 28. Rd6 {[%emt 0:00:51]} 1-0

[Event "ROU-chT Women Superliga 2018"]
[Site "Sovata"]
[Date "2018.11.29"]
[Round "5"]
[White "Baciu, Anca-Otilia"]
[Black "Sgircea, Silvia-Raluca"]
[Result "1-0"]
[ECO "B31"]
[WhiteElo "1998"]
[BlackElo "2259"]
[Annotator "NA RC"]
[PlyCount "63"]
[EventDate "2018.11.24"]
[EventType "team-tourn"]
[EventCountry "ROU"]
[SourceTitle "playchess.com"]
[Source "ChessBase"]
[SourceQuality "1"]
[TimeControl "40/5400+30:1800+30"]

1. e4 {[%emt 0:00:00]} c5 {[%emt 0:00:00]} 2. Nf3 {[%emt 0:00:00]} Nc6 {[%emt 0:00:00]} 3. Bb5 {[%emt 0:00:00]} g6 {[%emt 0:00:00]} 4. Bxc6 {[%emt 0:00:06]} bxc6 {[%emt 0:00:00] LiveBook: 1502 Games} 5. O-O {[%emt 0:00:07]} Bg7 {[%emt 0:00:02]} 6. Re1 {[%emt 0:00:36]} Nh6 {[%emt 0:00:29]} 7. c3 {[%emt 0:01:00]} O-O {[%emt 0:00:21]} 8. d4 {[%emt 0:00:35] B31: Sicilian: 2...Nc6 3 Bb5 g6} (8. h3 f5 9. e5 Nf7 10. d3 d6 11. Bf4 Ba6 12. Na3 Rb8 13. Qd2 dxe5 14. Nxe5 Nxe5 15. Bxe5 Bxe5 16. Rxe5 Qxd3 {1-0 (50) Amin,B (2686)-Guseinov,G (2667) Hoogeveen 2018}) 8... Qb6 {[%emt 0:00:21]} 9. Na3 {[%emt 0:06:27]} cxd4 {[%emt 0:00:44]} 10. cxd4 {[%emt 0:00:08]} d6 {[%emt 0:00:48]} 11. Nc4 {[%emt 0:06:21]} Qa6 {[%emt 0:02:21]} 12. Ne3 {[%emt 0:09:51]} Rb8 {[%emt 0:13:38]} 13. b3 $146 {[%emt 0:05:59]} ({Predecessor:} 13. h3 Be6 14. g4 Kh8 15. d5 Bd7 16. dxc6 Bxc6 {0-1 (35) Jeran,B (2153)-Skoberne,J (2479) Ljubljana 2007}) 13... Bd7 {[%emt 0:05:41]} 14. Bb2 {[%emt 0:00:52]} f6 {[%emt 0:01:27]} 15. Qc2 {[%emt 0:05:43]} Nf7 {[%emt 0:01:54]} 16. Nd2 {[%emt 0:01:37]} Rfd8 {[%emt 0:15:47]} 17. f4 {[%emt 0:04:49]} e5 {[%emt 0:06:51]} 18. f5 {[%emt 0:03:56]} exd4 {[%emt 0:08:27]} 19. Bxd4 {[%emt 0:03:23]} Ne5 {[%emt 0:01:26]} 20. fxg6 {[%emt 0:11:49]} hxg6 {[%emt 0:00:15]} 21. Ndc4 {[%emt 0:00:44]} Be6 {[%emt 0:00:51]} 22. Nxe5 {[%emt 0:04:00]} (22. Rad1 $16) 22... fxe5 {[%emt 0:00:52]} 23. Bb2 {[%emt 0:00:54]} Bf7 {[%emt 0:16:52]} 24. Kh1 {[%emt 0:05:31]} Qb5 {[%emt 0:03:34]} 25. Qf2 {[%emt 0:07:49]} d5 {[%emt 0:07:33]} ({Better is} 25... Qa5 $14) 26. exd5 {[%emt 0:07:11]} cxd5 {[%emt 0:00:07]} 27. Ng4 {[%emt 0:00:07]} d4 {[%emt 0:01:07]} 28. Rf1 {[%emt 0:01:38]} Qd5 {[%emt 0:00:36]} 29. Bc1 {[%emt 0:03:53]} Rf8 {[%emt 0:07:55]} 30. Nh6+ {[%emt 0:02:52]} Kh7 {[%emt 0:02:06] [#]} 31. Qh4 $1 {[%emt 0:01:02]} ({Worse is} 31. Nxf7 Kg8 $17) 31... g5 {[%emt 0:00:28]} 32. Bxg5 $18 {[%emt 0:00:32]} 1-0

[Event "ROU-chT Women Superliga 2018"]
[Site "Sovata"]
[Date "2018.11.29"]
[Round "5"]
[White "Nastase, Andreea-Cristina"]
[Black "Panainte, Andreea-Bianca"]
[Result "1-0"]
[ECO "E11"]
[WhiteElo "1900"]
[BlackElo "1946"]
[Annotator "NA RC"]
[PlyCount "73"]
[EventDate "2018.11.24"]
[EventType "team-tourn"]
[EventCountry "ROU"]
[SourceTitle "playchess.com"]
[Source "ChessBase"]
[SourceQuality "1"]
[TimeControl "40/5400+30:1800+30"]

1. d4 {[%emt 0:00:00]} Nf6 {[%emt 0:00:00]} 2. Nf3 {[%emt 0:00:00]} e6 {[%emt 0:00:00]} 3. c4 {[%emt 0:00:00]} Bb4+ {[%emt 0:00:00]} 4. Nbd2 {[%emt 0:00:00]} c5 {[%emt 0:01:33]} 5. a3 {[%emt 0:03:15]} Bxd2+ {[%emt 0:00:06]} 6. Qxd2 {[%emt 0:02:15]} cxd4 {[%emt 0:04:01]} 7. Nxd4 {[%emt 0:01:24]} d5 {[%emt 0:00:41] E11: Bogo-Indian} 8. e3 {[%emt 0:01:38]} O-O {[%emt 0:00:31]} 9. cxd5 {[%emt 0:01:53]} Qxd5 {[%emt 0:00:24]} 10. Nb5 {[%emt 0:04:03]} Na6 {[%emt 0:01:11]} (10... Qc6 11. f3 a6 12. Nc3 e5 13. e4 Nbd7 14. Qf2 Nc5 15. Be3 Nb3 {½-½ (43) Kasparov,G (2812)-Short,N (2664) Saint Louis 2015}) 11. Qxd5 {[%emt 0:01:29]} Nxd5 {[%emt 0:00:08]} 12. e4 $146 {[%emt 0:00:12]} ({Predecessor:} 12. b4 Nac7 13. Nxc7 Nxc7 14. Bb2 Bd7 15. Rc1 {1-0 (39) Kanarek,M (2528)-Van der Lende,I (2332) Barcelona 2015}) 12... Ndc7 {[%emt 0:02:11]} 13. Bf4 {[%emt 0:02:14]} Nxb5 {[%emt 0:01:07]} 14. Bxb5 {[%emt 0:00:04]} Rd8 {[%emt 0:00:48]} 15. Rd1 {[%emt 0:04:30]} Rxd1+ {[%emt 0:00:11]} 16. Kxd1 {[%emt 0:00:03]} Nc5 {[%emt 0:00:41] [#]} 17. Ke2 $1 {[%emt 0:02:12]} Bd7 {[%emt 0:00:34]} 18. Bxd7 {[%emt 0:00:11]} Nxd7 {[%emt 0:00:05]} 19. Rc1 {[%emt 0:00:02]} Nf6 {[%emt 0:11:03]} 20. Rc7 {[%emt 0:05:40]} b6 {[%emt 0:10:46]} 21. f3 {[%emt 0:00:32]} a6 {[%emt 0:00:05]} 22. a4 {[%emt 0:06:03]} h6 {[%emt 0:25:23]} 23. Rb7 {[%emt 0:00:20]} h5 {[%emt 0:01:22]} 24. Be5 {[%emt 0:02:01]} Rc8 {[%emt 0:00:38]} 25. Bxf6 {[%emt 0:03:28]} gxf6 {[%emt 0:00:05]} 26. Kd3 {[%emt 0:01:26]} Rd8+ {[%emt 0:00:22]} 27. Ke3 {[%emt 0:00:37]} Rd6 {[%emt 0:00:07]} 28. b4 {[%emt 0:00:08]} e5 {[%emt 0:02:39]} 29. a5 {[%emt 0:07:11]} b5 {[%emt 0:01:45]} 30. Rb6 {[%emt 0:00:55]} Re6 {[%emt 0:00:08]} (30... Rd4 {is a better defense.} 31. Rxf6 (31. Rxa6 Rxb4 32. Rxf6 Rb3+ 33. Kd2 h4 $18) 31... Rxb4 32. Rxa6 h4) 31. f4 {[%emt 0:00:19]} exf4+ {[%emt 0:00:12]} 32. Kxf4 {[%emt 0:00:04]} Kg7 {[%emt 0:03:01]} 33. Rxe6 {[%emt 0:03:16]} fxe6 {[%emt 0:00:07]} 34. e5 {[%emt 0:00:01]} Kg6 {[%emt 0:01:25]} 35. exf6 {[%emt 0:00:10]} Kxf6 {[%emt 0:00:05]} 36. g4 {[%emt 0:00:14]} e5+ {[%emt 0:00:33]} 37. Kg3 $18 {[%emt 0:00:16]} 1-0

[Event "ROU-chT Women Superliga 2018"]
[Site "Sovata"]
[Date "2018.11.29"]
[Round "5"]
[White "Dobre, Ana-Margareta-Alexa"]
[Black "Popa, Andrada"]
[Result "1-0"]
[ECO "A10"]
[WhiteElo "1885"]
[BlackElo "1598"]
[Annotator "NA RC"]
[PlyCount "57"]
[EventDate "2018.11.24"]
[EventType "team-tourn"]
[EventCountry "ROU"]
[SourceTitle "playchess.com"]
[Source "ChessBase"]
[SourceQuality "1"]
[TimeControl "40/5400+30:1800+30"]

1. c4 {[%emt 0:01:50]} g6 {[%emt 0:00:59]} 2. g3 {[%emt 0:00:06]} Bg7 {[%emt 0:00:06]} 3. Bg2 {[%emt 0:00:04]} e6 {[%emt 0:00:34]} 4. Nc3 {[%emt 0:01:17]} Nf6 {[%emt 0:01:25]} 5. e4 {[%emt 0:05:52]} d6 {[%emt 0:04:33]} 6. Nge2 {[%emt 0:12:24]} e5 {[%emt 0:01:48]} 7. O-O {[%emt 0:12:00]} O-O {[%emt 0:00:26]} 8. d4 {[%emt 0:03:26]} Nbd7 {[%emt 0:04:40]} 9. Rb1 {[%emt 0:10:11]} Re8 {[%emt 0:03:49]} 10. dxe5 {[%emt 0:05:57]} Nxe5 {[%emt 0:05:23]} 11. b3 $1 {[%emt 0:00:13]} Nfd7 {[%emt 0:08:31]} 12. Nd5 {[%emt 0:06:28]} Nc5 {[%emt 0:04:51]} 13. Be3 {[%emt 0:08:11]} Ned7 {[%emt 0:08:27]} 14. Qc2 {[%emt 0:06:39]} Ne5 $14 {[%emt 0:16:28]} 15. h3 {[%emt 0:07:04]} f5 {[%emt 0:05:32]} 16. f4 {[%emt 0:06:41]} Nc6 {[%emt 0:03:51]} 17. Bxc5 {[%emt 0:00:30]} dxc5 {[%emt 0:00:16]} 18. e5 {[%emt 0:00:05]} Nd4 {[%emt 0:03:44]} 19. Qb2 {[%emt 0:03:43]} c6 {[%emt 0:02:55]} 20. Ndc3 {[%emt 0:00:21]} Rb8 {[%emt 0:04:21]} 21. Rbd1 {[%emt 0:00:18]} Qb6 {[%emt 0:01:09]} 22. Nxd4 {[%emt 0:00:26]} cxd4 {[%emt 0:01:08]} 23. Na4 {[%emt 0:00:02]} Qc7 {[%emt 0:01:22]} 24. Qxd4 {[%emt 0:00:08]} b5 {[%emt 0:03:12]} 25. cxb5 {[%emt 0:03:22]} cxb5 {[%emt 0:00:46]} 26. Rc1 {[%emt 0:01:06]} Qa5 {[%emt 0:01:10]} 27. Nc3 {[%emt 0:00:51]} Ba6 {[%emt 0:02:18]} 28. b4 {[%emt 0:01:03]} Red8 {[%emt 0:02:10]} 29. Bd5+ {[%emt 0:00:04]} 1-0

[Event "ROU-chT Women Superliga 2018"]
[Site "Sovata"]
[Date "2018.11.29"]
[Round "5"]
[White "Matasaru, Stephanie"]
[Black "Lehaci, Miruna-Daria"]
[Result "0-1"]
[ECO "B90"]
[WhiteElo "1859"]
[BlackElo "2067"]
[Annotator "NA RC"]
[PlyCount "78"]
[EventDate "2018.11.24"]
[EventType "team-tourn"]
[EventCountry "ROU"]
[SourceTitle "playchess.com"]
[Source "ChessBase"]
[SourceQuality "1"]
[TimeControl "40/5400+30:1800+30"]

1. e4 {[%emt 0:00:00]} c5 {[%emt 0:00:00]} 2. Nf3 {[%emt 0:00:00]} d6 {[%emt 0:00:00]} 3. d4 {[%emt 0:00:00]} cxd4 {[%emt 0:00:00]} 4. Nxd4 {[%emt 0:00:00]} Nf6 {[%emt 0:00:00] LiveBook: 96135 Games} 5. Nc3 {[%emt 0:00:00]} a6 {[%emt 0:00:00]} 6. h3 {[%emt 0:00:02]} e6 {[%emt 0:00:00]} 7. g4 {[%emt 0:03:31]} Be7 {[%emt 0:00:00]} 8. Bg2 {[%emt 0:00:19]} Nfd7 {[%emt 0:00:00] B81: Sicilian Scheveningen: Keres Attack} 9. O-O {[%emt 0:01:47]} (9. Be3 Nc6 10. h4 O-O 11. g5 Nde5 12. Qe2 Nxd4 13. Bxd4 Nc6 14. Be3 Bd7 15. f4 {½-½ (30) Dominguez Perez,L (2739)-Grischuk,A (2766) Saint Louis 2018}) 9... g5 {[%emt 0:00:03]} 10. Be3 {[%emt 0:07:08]} Ne5 $146 {[%emt 0:00:19]} ({Predecessor:} 10... Nc6 11. a4 Nce5 12. b3 b6 13. Nde2 Bb7 14. Qd2 h5 15. f3 Rc8 16. Ng3 {0-1 (52) Popovic,A (2300)-Ravic,N (2283) Belgrade 2009}) 11. Qe2 {[%emt 0:04:48]} Nbd7 {[%emt 0:02:57]} 12. f4 {[%emt 0:06:29]} gxf4 {[%emt 0:00:07]} 13. Bxf4 {[%emt 0:00:14]} h5 {[%emt 0:12:22]} 14. Bxe5 {[%emt 0:12:56]} Nxe5 {[%emt 0:00:13]} 15. gxh5 {[%emt 0:05:08]} Qb6 {[%emt 0:02:15]} 16. Qf2 {[%emt 0:04:41]} Bd7 {[%emt 0:01:00]} 17. Nf3 {[%emt 0:03:22]} Qxf2+ {[%emt 0:00:51]} ({Much less strong is} 17... Nxf3+ 18. Bxf3 Qxb2 19. Ne2 $17) 18. Rxf2 {[%emt 0:01:09]} Rxh5 {[%emt 0:00:36]} 19. Nxe5 {[%emt 0:03:28]} dxe5 {[%emt 0:00:21]} 20. Rf3 {[%emt 0:01:35]} Rc8 {[%emt 0:05:02]} 21. Raf1 {[%emt 0:03:17]} f6 {[%emt 0:00:43]} 22. Rg3 {[%emt 0:02:21]} Kf7 {[%emt 0:01:45]} 23. Bf3 {[%emt 0:03:51]} Rhh8 {[%emt 0:05:51]} 24. Bg4 {[%emt 0:01:32]} Bc6 {[%emt 0:02:51]} 25. Kh2 {[%emt 0:02:56]} b5 {[%emt 0:01:14]} 26. a3 {[%emt 0:02:22]} a5 {[%emt 0:00:28]} 27. Bf3 {[%emt 0:00:35]} Bf8 {[%emt 0:08:20]} 28. Rfg1 {[%emt 0:01:56]} Rd8 {[%emt 0:02:08]} 29. R1g2 {[%emt 0:03:23]} Bh6 {[%emt 0:02:15]} 30. Bh5+ $2 {[%emt 0:02:27]} (30. Kg1) 30... Kf8 {[%emt 0:00:32]} 31. Ne2 $19 {[%emt 0:03:16]} Bxe4 {[%emt 0:02:18]} 32. Rf2 {[%emt 0:00:52]} f5 {[%emt 0:02:21]} 33. Bf3 {[%emt 0:01:15]} Bxc2 {[%emt 0:00:43]} 34. Rg6 {[%emt 0:01:17]} Ke7 {[%emt 0:01:11]} 35. Nc3 {[%emt 0:01:35]} Bf4+ {[%emt 0:01:10]} 36. Kg2 {[%emt 0:02:24]} Kf7 {[%emt 0:00:18]} 37. Rxc2 {[%emt 0:02:01]} Kxg6 {[%emt 0:00:05]} 38. Nxb5 {[%emt 0:00:23]} e4 {[%emt 0:00:11]} 39. Be2 {[%emt 0:00:33]} Rd2 {[%emt 0:00:09]} 0-1